fUST/lending_fUST_20250821
["ID","MTS","AMOUNT","RATE_DAILY","PERIOD"]
[380462168,1755783041895,-500.0,0.00021917,3]
[380462170,1755783041906,-500.0,0.00021917,3]
[380462172,1755783041915,-500.0,0.00021917,3]
[380462174,1755783041924,-480.0,0.00021917,3]
[380462176,1755783041934,-500.0,0.00021917,3]
[380462178,1755783041943,-500.0,0.00021917,3]
[380462180,1755783041952,-500.0,0.00021917,3]
[380462182,1755783041961,-480.0,0.00021917,3]
[380462184,1755783041970,-480.0,0.00021917,3]
[380462186,1755783041979,-500.0,0.00021917,3]
[380462188,1755783041988,-500.0,0.00021917,3]
[380462190,1755783041997,-500.0,0.00021917,3]
[380462192,1755783042007,-500.0,0.00021917,3]
[380462194,1755783042016,-1006.78726958,0.00021917,3]
[380462196,1755783042026,-460.0,0.00021917,3]
[380462198,1755783042035,-480.0,0.00021917,3]
[380462200,1755783042047,-480.0,0.00021917,3]
[380462202,1755783042057,-460.46804685,0.00021917,3]
[380462204,1755783042066,-1125.58,0.00021917,3]
[380462206,1755783042076,-480.0,0.00021917,3]
[380462208,1755783042086,-480.0,0.00021917,3]
[380462210,1755783042095,-480.0,0.00021917,3]
[380462212,1755783042109,-480.0,0.00021917,3]
[380462214,1755783042118,-1023.38,0.00021917,3]
[380462216,1755783042128,-480.0,0.00021917,3]
[380462218,1755783042138,-460.99860679,0.00021917,3]
[380462220,1755783042147,-480.0,0.00021917,3]
[380462222,1755783042157,-480.0,0.00021917,3]
[380462224,1755783042167,-480.0,0.00021917,3]
[380462226,1755783042176,-480.0,0.00021917,3]
[380462228,1755783042185,-1279.47,0.00021917,3]
[380462230,1755783042194,-480.0,0.00021917,3]
[380462232,1755783042203,-480.0,0.00021917,3]
[380462234,1755783042212,-525.27,0.00021917,3]
[380462236,1755783042221,-480.0,0.00021917,3]
[380462238,1755783042230,-480.0,0.00021917,3]
[380462240,1755783042239,-480.0,0.00021917,3]
[380462242,1755783042249,-480.0,0.00021917,3]
[380462243,1755783042259,-480.0,0.00021917,3]
[380462245,1755783042271,-1452.04,0.00021917,3]
[380462247,1755783042280,-1452.04,0.00021917,3]
[380462249,1755783042289,-1452.04,0.00021917,3]
[380462251,1755783042299,-1452.04,0.00021917,3]
[380462253,1755783042307,-460.0,0.00021917,3]
[380462255,1755783042317,-1452.04,0.00021917,3]
[380462257,1755783042326,-1452.04,0.00021917,3]
[380462259,1755783042335,-1452.04,0.00021917,3]
[380462261,1755783042346,-1452.04,0.00021917,3]
[380462263,1755783042357,-1452.04,0.00021917,3]
[380462265,1755783042367,-1452.04,0.00021917,3]
[380462267,1755783042376,-1452.04,0.00021917,3]
[380462269,1755783042385,-742.18,0.00021917,3]
[380462271,1755783042395,-1452.04,0.00021917,3]
[380462273,1755783042404,-1452.04,0.00021917,3]
[380462275,1755783042413,-1452.04,0.00021917,3]
[380462277,1755783042422,-1452.04,0.00021917,3]
[380462279,1755783042431,-1452.04,0.00021917,3]
[380462281,1755783042440,-1452.04,0.00021917,3]
[380462283,1755783042449,-1452.04,0.00021917,3]
[380462285,1755783042458,-1452.04,0.00021917,3]
[380462287,1755783042467,-1452.04,0.00021917,3]
[380462289,1755783042476,-1452.04,0.00021917,3]
[380462291,1755783042487,-480.0,0.00021917,3]
[380462293,1755783042495,-480.0,0.00021917,3]
[380462295,1755783042506,-1452.04,0.00021917,3]
[380462297,1755783042514,-480.0,0.00021917,3]
[380462299,1755783042524,-1452.04,0.00021917,3]
[380462301,1755783042533,-1452.15,0.00021917,3]
[380462303,1755783042542,-723.92,0.00021917,3]
[380462305,1755783042551,-505.53,0.00021917,3]
[380462307,1755783042560,-480.0,0.00021917,3]
[380462309,1755783042569,-480.0,0.00021917,3]
[380462311,1755783042578,-480.0,0.00021917,3]
[380462313,1755783042587,-480.0,0.00021917,3]
[380462315,1755783042597,-480.0,0.00021917,3]
[380462317,1755783042610,-461.14662951,0.00021917,3]
[380462319,1755783042620,-733.9,0.00021917,3]
[380462321,1755783042629,-480.0,0.00021917,3]
[380462323,1755783042639,-2449.33,0.00021917,3]
[380462325,1755783042649,-480.0,0.00021917,3]
[380462327,1755783042658,-480.0,0.00021917,3]
[380462329,1755783042667,-509.34344261,0.00021917,3]
[380462331,1755783042676,-480.0,0.00021917,3]
[380462333,1755783042685,-480.0,0.00021917,3]
[380462335,1755783042694,-480.0,0.00021917,3]
[380462337,1755783042703,-480.0,0.00021917,3]
[380462339,1755783042712,-480.0,0.00021917,3]
[380462341,1755783042721,-480.0,0.00021917,3]
[380462343,1755783042731,-624.70747224,0.00021917,3]
[380462345,1755783042740,-480.0,0.00021917,3]
[380462347,1755783042749,-1730.63,0.00021917,3]
[380462349,1755783042759,-888.07,0.00021917,3]
[380462351,1755783042770,-937.24,0.00021917,3]
[380462353,1755783042779,-480.0,0.00021917,3]
[380462355,1755783042788,-480.0,0.00021917,3]
[380462357,1755783042798,-505.6,0.00021917,3]
[380462359,1755783042807,-480.0,0.00021917,3]
[380462361,1755783042816,-460.45942864,0.00021917,3]
[380462363,1755783042825,-2299.65,0.00021917,3]
[380462365,1755783042834,-465.14014607,0.00021917,3]
[380462367,1755783042844,-461.52453023,0.00021917,3]
[380462369,1755783042858,-480.0,0.00021917,3]
[380462371,1755783042869,-480.0,0.00021917,3]
[380462373,1755783042878,-559.71,0.00021917,3]
[380462375,1755783042887,-480.6696763,0.00021917,3]
[380462377,1755783042897,-480.0,0.00021917,3]
[380462379,1755783042907,-1469.97,0.00021917,3]
[380462381,1755783042919,-480.0,0.00021917,3]
[380462383,1755783042928,-480.0,0.00021917,3]
[380462385,1755783042938,-480.0,0.00021917,3]
[380462387,1755783042947,-480.0,0.00021917,3]
[380462389,1755783042956,-404.607234,0.00021917,3]
[380462391,1755783042966,-461.52613451,0.00021917,3]
[380462393,1755783042975,-480.0,0.00021917,3]
[380462395,1755783042984,-480.0,0.00021917,3]
[380462397,1755783042993,-480.0,0.00021917,3]
[380462399,1755783043003,-480.0,0.00021917,3]
[380462401,1755783043012,-480.0,0.00021917,3]
[380462403,1755783043022,-462.28254052,0.00021917,3]
[380462405,1755783043031,-480.0,0.00021917,3]
[380462407,1755783043041,-1160.32,0.00021917,3]
[380462409,1755783043050,-480.0,0.00021917,3]
[380462411,1755783043059,-480.0,0.00021917,3]
[380462413,1755783043068,-480.0,0.00021917,3]
[380462415,1755783043077,-3005.64,0.00021917,3]
[380462417,1755783043087,-480.0,0.00021917,3]
[380462419,1755783043096,-480.0,0.00021917,3]
[380462422,1755783043109,-480.0,0.00021917,3]
[380462425,1755783043119,-480.0,0.00021917,3]
[380462427,1755783043128,-3290.64,0.00021917,3]
[380462429,1755783043138,-480.0,0.00021917,3]
[380462431,1755783043148,-480.0,0.00021917,3]
[380462433,1755783043157,-480.0,0.00021917,3]
[380462436,1755783043167,-561.38,0.00021917,3]
[380462438,1755783043176,-480.0,0.00021917,3]
[380462440,1755783043186,-514.72,0.00021917,3]
[380462442,1755783043195,-480.0,0.00021917,3]
[380462444,1755783043204,-461.06643778,0.00021917,3]
[380462446,1755783043214,-1904.63,0.00021917,3]
[380462448,1755783043223,-480.0,0.00021917,3]
[380462450,1755783043232,-480.0,0.00021917,3]
[380462452,1755783043242,-824.0,0.00021917,3]
[380462454,1755783043252,-480.0,0.00021917,3]
[380462456,1755783043262,-480.0,0.00021917,3]
[380462458,1755783043272,-460.0,0.00021917,3]
[380462461,1755783043282,-480.0,0.00021917,3]
[380462463,1755783043291,-461.23341543,0.00021917,3]
[380462465,1755783043300,-480.0,0.00021917,3]
[380462467,1755783043310,-480.0,0.00021917,3]
[380462469,1755783043320,-480.0,0.00021917,3]
[380462472,1755783043329,-538.09,0.00021917,3]
[380462474,1755783043339,-480.0,0.00021917,3]
[380462476,1755783043348,-1366.26,0.00021917,3]
[380462478,1755783043362,-376.00439007,0.00021917,3]
[380462480,1755783043371,-462.6586019,0.00021917,3]
[380462482,1755783043380,-480.0,0.00021917,3]
[380462484,1755783043389,-480.0,0.00021917,3]
[380462486,1755783043398,-480.0,0.00021917,3]
[380462488,1755783043407,-480.0,0.00021917,3]
[380462490,1755783043417,-480.0,0.00021917,3]
[380462508,1755783043572,-480.0,0.00021917,3]
[380462510,1755783043582,-660.96,0.00021917,3]
[380462512,1755783043591,-480.0,0.00021917,3]
[380462515,1755783043604,-1450.66,0.00021917,3]
[380462516,1755783043614,-480.0,0.00021917,3]
[380462519,1755783043624,-480.0,0.00021917,3]
[380462520,1755783043634,-480.0,0.00021917,3]
[380462522,1755783043643,-480.0,0.00021917,3]
[380462525,1755783043653,-480.0,0.00021917,3]
[380462526,1755783043663,-620.55,0.00021917,3]
[380462528,1755783043672,-500.78,0.00021917,3]
[380462530,1755783043681,-480.0,0.00021917,3]
[380462532,1755783043691,-480.0,0.00021917,3]
[380462534,1755783043700,-480.0,0.00021917,3]
[380462537,1755783043710,-480.0,0.00021917,3]
[380462538,1755783043719,-480.0,0.00021917,3]
[380462541,1755783043728,-10203.15,0.00021917,3]
[380462542,1755783043738,-480.0,0.00021917,3]
[380462544,1755783043747,-480.0,0.00021917,3]
[380462546,1755783043756,-480.0,0.00021917,3]
[380462549,1755783043765,-480.0,0.00021917,3]
[380462552,1755783043775,-480.0,0.00021917,3]
[380462554,1755783043784,-520.78693277,0.00021917,3]
[380462557,1755783043792,-151.0,0.00021917,2]
[380462560,1755783043801,-480.0,0.00021917,3]
[380462562,1755783043810,-1348.55,0.00021917,3]
[380462564,1755783043819,-480.0,0.00021917,3]
[380462566,1755783043828,-480.0,0.00021917,3]
[380462568,1755783043838,-892.52,0.00021917,3]
[380462570,1755783043847,-1658.51,0.00021917,3]
[380462572,1755783043857,-480.0,0.00021917,3]
[380462574,1755783043867,-480.0,0.00021917,3]
[380462576,1755783043876,-480.0,0.00021917,3]
[380462578,1755783043885,-806.8,0.00021917,3]
[380462580,1755783043894,-480.0,0.00021917,3]
[380462582,1755783043903,-480.0,0.00021917,3]
[380462584,1755783043912,-290.170859,0.00021917,2]
[380462586,1755783043922,-480.0,0.00021917,3]
[380462588,1755783043931,-480.0,0.00021917,3]
[380462590,1755783043940,-2874.95,0.00021917,3]
[380462592,1755783043949,-514.93,0.00021917,3]
[380462594,1755783043958,-481.69181337,0.00021917,3]
[380462596,1755783043967,-480.0,0.00021917,3]
[380462598,1755783043975,-480.0,0.00021917,3]
[380462600,1755783043984,-2756.56,0.00021917,2]
[380462602,1755783043994,-528.88070896,0.00021917,3]
[380462604,1755783044003,-597.97,0.00021917,3]
[380462606,1755783044012,-1460.8,0.00021917,3]
[380462608,1755783044021,-480.0,0.00021917,3]
[380462610,1755783044030,-480.0,0.00021917,3]
[380462611,1755783044039,-480.0,0.00021917,3]
[380462613,1755783044048,-480.0,0.00021917,3]
[380462615,1755783044057,-480.0,0.00021917,3]
[380462617,1755783044067,-480.0,0.00021917,3]
[380462619,1755783044076,-480.0,0.00021917,3]
[380462622,1755783044085,-1036.23,0.00021917,3]
[380462623,1755783044094,-480.0,0.00021917,3]
[380462625,1755783044107,-7064.91,0.00021917,3]
[380462628,1755783044116,-560.2,0.00021917,3]
[380462629,1755783044125,-595.25,0.00021917,3]
[380462631,1755783044135,-480.0,0.00021917,3]
[380462633,1755783044144,-1034.85,0.00021917,3]
[380462635,1755783044154,-513.29,0.00021917,3]
[380462637,1755783044163,-461.44733882,0.00021917,3]
[380462639,1755783044173,-480.0,0.00021917,3]
[380462641,1755783044182,-480.0,0.00021917,3]
[380462644,1755783044192,-1034.69,0.00021917,3]
[380462645,1755783044201,-480.0,0.00021917,3]
[380462647,1755783044211,-480.0,0.00021917,3]
[380462649,1755783044220,-1655.3,0.00021917,3]
[380462651,1755783044229,-480.0,0.00021917,3]
[380462654,1755783044238,-480.0,0.00021917,3]
[380462656,1755783044248,-526.56191669,0.00021917,3]
[380462658,1755783044259,-480.0,0.00021917,3]
[380462659,1755783044271,-463.10940949,0.00021917,3]
[380462661,1755783044280,-1171.66,0.00021917,3]
[380462663,1755783044290,-480.0,0.00021917,3]
[380462665,1755783044300,-7996.51,0.00021917,3]
[380462667,1755783044310,-413.34283794,0.00021917,3]
[380462669,1755783044319,-480.0,0.00021917,3]
[380462671,1755783044328,-480.0,0.00021917,3]
[380462673,1755783044339,-480.0,0.00021917,3]
[380462675,1755783044349,-460.74875237,0.00021917,3]
[380462677,1755783044362,-480.0,0.00021917,3]
[380462679,1755783044371,-480.0,0.00021917,3]
[380462681,1755783044381,-480.0,0.00021917,3]
[380462683,1755783044390,-1710.89,0.00021917,3]
[380462685,1755783044399,-480.0,0.00021917,3]
[380462687,1755783044408,-5535.45,0.00021917,3]
[380462689,1755783044417,-584.77564283,0.00021917,3]
[380462691,1755783044428,-480.0,0.00021917,3]
[380462693,1755783044437,-508.19,0.00021917,3]
[380462695,1755783044446,-480.0,0.00021917,3]
[380462697,1755783044455,-877.43,0.00021917,2]
[380462699,1755783044465,-500.0,0.00021917,3]
[380462701,1755783044474,-409.65178701,0.00021917,3]
[380462703,1755783044484,-500.0,0.00021917,3]
[380462705,1755783044493,-500.0,0.00021917,3]
[380462707,1755783044502,-500.0,0.00021917,3]
[380462709,1755783044510,-531.76,0.00021917,3]
[380462711,1755783044519,-500.0,0.00021917,3]
[380462713,1755783044528,-183.75994324,0.00021917,3]
[380462715,1755783044538,-480.0,0.00021917,3]
[380462717,1755783044547,-500.0,0.00021917,3]
[380462719,1755783044556,-500.0,0.00021917,3]
[380462721,1755783044565,-578.47,0.00021917,3]
[380462723,1755783044574,-480.0,0.00021917,3]
[380462725,1755783044583,-480.0,0.00021917,3]
[380462727,1755783044593,-1226.8,0.00021917,3]
[380462729,1755783044604,-480.0,0.00021917,3]
[380462731,1755783044613,-480.0,0.00021917,3]
[380462733,1755783044623,-480.0,0.00021917,3]
[380462735,1755783044632,-981.97,0.00021917,3]
[380462737,1755783044641,-480.0,0.00021917,3]
[380462739,1755783044651,-480.0,0.00021917,3]
[380462741,1755783044660,-480.0,0.00021917,3]
[380462743,1755783044670,-2451.73,0.00021917,3]
[380462745,1755783044680,-622.16,0.00021917,3]
[380462747,1755783044689,-938.77,0.00021917,3]
[380462749,1755783044699,-2886.22,0.00021917,3]
[380462751,1755783044708,-480.0,0.00021917,3]
[380462753,1755783044717,-151.0,0.00021917,2]
[380462755,1755783044726,-774.09,0.00021917,3]
[380462757,1755783044735,-480.0,0.00021917,3]
[380462759,1755783044744,-480.0,0.00021917,3]
[380462761,1755783044754,-480.0,0.00021917,3]
[380462763,1755783044763,-480.0,0.00021917,3]
[380462765,1755783044772,-480.0,0.00021917,3]
[380462767,1755783044781,-838.48,0.00021917,3]
[380462769,1755783044790,-878.65,0.00021917,3]
[380462771,1755783044799,-480.0,0.00021917,3]
[380462773,1755783044809,-985.04,0.00021917,3]
[380462775,1755783044818,-480.0,0.00021917,3]
[380462777,1755783044827,-480.0,0.00021917,3]
[380462779,1755783044836,-480.0,0.00021917,3]
[380462781,1755783044846,-480.0,0.00021917,3]
[380462783,1755783044858,-2163.04,0.00021917,3]
[380462785,1755783044867,-1126.89,0.00021917,3]
[380462787,1755783044877,-632.87,0.00021917,3]
[380462789,1755783044886,-2357.53,0.00021917,3]
[380462791,1755783044895,-480.0,0.00021917,3]
[380462793,1755783044905,-480.0,0.00021917,3]
[380462795,1755783044914,-480.0,0.00021917,3]
[380462797,1755783044923,-460.73291244,0.00021917,3]
[380462799,1755783044933,-480.0,0.00021917,3]
[380462801,1755783044942,-480.0,0.00021917,3]
[380462803,1755783044957,-480.0,0.00021917,3]
[380462806,1755783044973,-480.0,0.00021917,3]
[380462809,1755783044989,-480.0,0.00021917,3]
[380462811,1755783045001,-1747.54,0.00021917,3]
[380462813,1755783045016,-480.0,0.00021917,3]
[380462816,1755783045030,-1217.74,0.00021917,3]
[380462818,1755783045045,-480.0,0.00021917,3]
[380462821,1755783045058,-480.0,0.00021917,3]
[380462823,1755783045073,-1965.96,0.00021917,3]
[380462826,1755783045088,-480.0,0.00021917,3]
[380462828,1755783045101,-1452.88,0.00021917,3]
[380462830,1755783045116,-1053.109,0.00021917,2]
[380462833,1755783045128,-172.432,0.00021917,2]
[380462835,1755783045143,-480.0,0.00021917,3]
[380462838,1755783045156,-480.0,0.00021917,3]
[380462840,1755783045169,-480.0,0.00021917,3]
[380462842,1755783045180,-480.0,0.00021917,3]
[380462844,1755783045193,-480.0,0.00021917,3]
[380462847,1755783045205,-517.5,0.00021917,3]
[380462849,1755783045219,-496.41,0.00021917,3]
[380462851,1755783045232,-480.0,0.00021917,3]
[380462854,1755783045246,-2143.73,0.00021917,3]
[380462856,1755783045263,-980.95,0.00021917,3]
[380462859,1755783045278,-480.0,0.00021917,3]
[380462861,1755783045289,-480.0,0.00021917,3]
[380462863,1755783045300,-480.0,0.00021917,3]
[380462865,1755783045312,-480.0,0.00021917,3]
[380462868,1755783045326,-6260.82,0.00021917,3]
[380462870,1755783045341,-480.0,0.00021917,3]
[380462873,1755783045355,-480.0,0.00021917,3]
[380462875,1755783045367,-242.46639504,0.00021917,3]
[380462876,1755783045380,-4753.04,0.00021917,3]
[380462877,1755783045393,-519.8551382,0.00021917,3]
[380462878,1755783045404,-1189.22,0.00021917,3]
[380462879,1755783045414,-460.82955829,0.00021917,3]
[380462880,1755783045426,-10930.77,0.00021917,3]
[380462881,1755783045437,-2732.35,0.00021917,3]
[380462882,1755783045449,-2696.93,0.00021917,3]
[380462883,1755783045460,-460.40695917,0.00021917,3]
[380462884,1755783045471,-480.0,0.00021917,3]
[380462885,1755783045482,-480.0,0.00021917,3]
[380462886,1755783045494,-460.67206165,0.00021917,3]
[380462887,1755783045505,-480.0,0.00021917,3]
[380462888,1755783045516,-2960.95,0.00021917,3]
[380462889,1755783045527,-1095.71,0.00021917,3]
[380462890,1755783045539,-480.0,0.00021917,3]
[380462891,1755783045550,-460.73866054,0.00021917,3]
[380462892,1755783045561,-480.0,0.00021917,3]
[380462893,1755783045572,-193.54642979,0.00021917,3]
[380462894,1755783045584,-480.0,0.00021917,3]
[380462895,1755783045595,-480.0,0.00021917,3]
[380462896,1755783045611,-1420.99,0.00021917,3]
[380462897,1755783045623,-480.0,0.00021917,3]
[380462898,1755783045635,-480.0,0.00021917,3]
[380462899,1755783045647,-154.53040766,0.00021917,3]
[380462901,1755783045658,-151.0,0.00021917,2]
[380462903,1755783045670,-480.0,0.00021917,3]
[380462905,1755783045681,-5064.57,0.00021917,3]
[380462907,1755783045693,-1279.05,0.00021917,3]
[380462909,1755783045705,-1513.8,0.00021917,3]
[380462912,1755783045716,-480.0,0.00021917,3]
[380462914,1755783045728,-151.0,0.00021917,2]
[380462916,1755783045739,-480.0,0.00021917,3]
[380462918,1755783045751,-480.0,0.00021917,3]
[380462920,1755783045764,-480.0,0.00021917,3]
[380462923,1755783045776,-684.35,0.00021917,3]
[380462924,1755783045787,-505.77,0.00021917,3]
[380462926,1755783045799,-5881.86,0.00021917,3]
[380462929,1755783045811,-1000.0,0.00021917,3]
[380462931,1755783045823,-480.0,0.00021917,3]
[380462933,1755783045834,-480.0,0.00021917,3]
[380462935,1755783045846,-480.0,0.00021917,3]
[380462937,1755783045859,-2047.45,0.00021917,3]
[380462939,1755783045871,-480.0,0.00021917,3]
[380462942,1755783045883,-986.53,0.00021917,3]
[380462944,1755783045894,-485.8,0.00021917,3]
[380462946,1755783045906,-1057.14,0.00021917,3]
[380462948,1755783045918,-480.0,0.00021917,3]
[380462950,1755783045929,-1311.52,0.00021917,3]
[380462952,1755783045942,-4588.22,0.00021917,3]
[380462955,1755783045954,-480.0,0.00021917,3]
[380462957,1755783045967,-480.0,0.00021917,3]
[380462959,1755783045979,-480.0,0.00021917,3]
[380462961,1755783045991,-1490.85,0.00021917,3]
[380462963,1755783046002,-480.0,0.00021917,3]
[380462965,1755783046013,-480.0,0.00021917,3]
[380462967,1755783046024,-480.0,0.00021917,3]
[380462970,1755783046036,-480.0,0.00021917,3]
[380462972,1755783046048,-2435.42,0.00021917,3]
[380462974,1755783046062,-710.71,0.00021917,3]
[380462976,1755783046075,-480.0,0.00021917,3]
[380462978,1755783046086,-480.0,0.00021917,3]
[380462980,1755783046098,-608.83,0.00021917,3]
[380462983,1755783046113,-1133.87,0.00021917,3]
[380462985,1755783046129,-480.0,0.00021917,3]
[380462987,1755783046144,-461.52536878,0.00021917,3]
[380462990,1755783046157,-480.0,0.00021917,3]
[380462992,1755783046177,-480.0,0.00021917,3]
[380462994,1755783046196,-480.0,0.00021917,3]
[380462996,1755783046208,-151.0,0.00021917,2]
[380462998,1755783046220,-480.0,0.00021917,3]
[380463000,1755783046232,-480.0,0.00021917,3]
[380463002,1755783046244,-151.0,0.00021917,2]
[380463004,1755783046256,-151.0,0.00021917,2]
[380463006,1755783046272,-890.85,0.00021917,3]
[380463008,1755783046285,-226.552052,0.00021917,2]
[380463010,1755783046296,-480.0,0.00021917,3]
[380463012,1755783046308,-480.0,0.00021917,3]
[380463015,1755783046320,-480.0,0.00021917,3]
[380463017,1755783046331,-4410.41,0.00021917,3]
[380463019,1755783046343,-480.0,0.00021917,3]
[380463021,1755783046356,-500.0,0.00021917,3]
[380463023,1755783046368,-500.0,0.00021917,3]
[380463025,1755783046380,-480.0,0.00021917,3]
[380463027,1755783046391,-460.0,0.00021917,3]
[380463029,1755783046403,-500.0,0.00021917,3]
[380463031,1755783046416,-500.0,0.00021917,3]
[380463034,1755783046429,-500.0,0.00021917,3]
[380463036,1755783046440,-500.0,0.00021917,3]
[380463038,1755783046452,-500.0,0.00021917,3]
[380463040,1755783046464,-1348.16,0.00021917,3]
[380463042,1755783046475,-500.0,0.00021917,3]
[380463044,1755783046488,-500.0,0.00021917,3]
[380463046,1755783046500,-500.0,0.00021917,3]
[380463048,1755783046512,-500.0,0.00021917,3]
[380463051,1755783046524,-173.7154461,0.00021917,3]
[380463053,1755783046535,-784.31,0.00021917,3]
[380463055,1755783046552,-480.0,0.00021917,3]
[380463057,1755783046564,-480.0,0.00021917,3]
[380463059,1755783046575,-480.0,0.00021917,3]
[380463061,1755783046587,-480.0,0.00021917,3]
[380463063,1755783046598,-386.50237429,0.00021917,3]
[380463065,1755783046612,-480.0,0.00021917,3]
[380463067,1755783046622,-480.0,0.00021917,3]
[380463069,1755783046631,-480.0,0.00021917,3]
[380463071,1755783046641,-480.0,0.00021917,3]
[380463073,1755783046651,-480.0,0.00021917,3]
[380463075,1755783046660,-995.87,0.00021917,3]
[380463077,1755783046669,-460.48281633,0.00021917,3]
[380463079,1755783046678,-480.0,0.00021917,3]
[380463081,1755783046687,-480.0,0.00021917,3]
[380463083,1755783046696,-5817.2,0.00021917,3]
[380463108,1755783046942,-7902.14,0.00021917,3]
[380463111,1755783046965,-460.64807387,0.00021917,3]
[380463113,1755783046980,-272.30489438,0.00021917,3]
[380463115,1755783046989,-151.0,0.00021917,2]
[380463117,1755783046999,-151.0,0.00021917,2]
[380463119,1755783047008,-1919.41,0.00021917,3]
[380463121,1755783047017,-2041.27,0.00021917,3]
[380463123,1755783047026,-4390.76,0.00021917,3]
[380463124,1755783047035,-706.82,0.00021917,3]
[380463126,1755783047044,-480.0,0.00021917,3]
[380463128,1755783047053,-768.35,0.00021917,3]
[380463130,1755783047062,-449.91397974,0.00021917,3]
[380463132,1755783047071,-574.67,0.00021917,3]
[380463134,1755783047081,-480.0,0.00021917,3]
[380463136,1755783047090,-480.0,0.00021917,3]
[380463138,1755783047099,-2393.92,0.00021917,3]
[380463140,1755783047109,-16212.9,0.00021917,3]
[380463142,1755783047118,-1694.32,0.00021917,3]
[380463144,1755783047127,-1657.19,0.00021917,3]
[380463146,1755783047136,-461.43280113,0.00021917,3]
[380463148,1755783047145,-480.0,0.00021917,3]
[380463150,1755783047154,-480.0,0.00021917,3]
[380463151,1755783047164,-480.0,0.00021917,3]
[380463153,1755783047173,-13141.76,0.00021917,3]
[380463155,1755783047181,-480.0,0.00021917,3]
[380463157,1755783047191,-500.0,0.00021917,3]
[380463159,1755783047200,-650.59,0.00021917,3]
[380463161,1755783047209,-480.0,0.00021917,3]
[380463163,1755783047218,-500.0,0.00021917,3]
[380463165,1755783047227,-500.0,0.00021917,3]
[380463167,1755783047236,-500.0,0.00021917,3]
[380463168,1755783047246,-480.0,0.00021917,3]
[380463170,1755783047255,-622.00244823,0.00021917,3]
[380463172,1755783047267,-480.0,0.00021917,3]
[380463174,1755783047276,-274.54457719,0.00021917,3]
[380463176,1755783047285,-654.99,0.00021917,3]
[380463178,1755783047297,-480.0,0.00021917,3]
[380463180,1755783047307,-1351.67,0.00021917,3]
[380463182,1755783047316,-480.0,0.00021917,3]
[380463183,1755783047325,-480.0,0.00021917,3]
[380463185,1755783047334,-480.0,0.00021917,3]
[380463187,1755783047344,-480.0,0.00021917,3]
[380463189,1755783047354,-480.0,0.00021917,3]
[380463191,1755783047364,-480.0,0.00021917,3]
[380463193,1755783047374,-646.44,0.00021917,3]
[380463195,1755783047383,-480.0,0.00021917,3]
[380463197,1755783047392,-480.0,0.00021917,3]
[380463199,1755783047401,-480.0,0.00021917,3]
[380463201,1755783047410,-480.0,0.00021917,3]
[380463203,1755783047419,-480.0,0.00021917,3]
[380463205,1755783047429,-480.0,0.00021917,3]
[380463207,1755783047439,-480.0,0.00021917,3]